bitfinex-derivatives/quotes_SOLF0:USTF0_20260108
["timestamp","ask_amount","ask_price","bid_price","bid_amount"]
[1767885718613,0.32903681,135.32,135.22,103.6475]
[1767885718798,0.32903681,135.32,135.19,191.0077]
[1767885719005,0.32903681,135.32,135.2,191.0012]
[1767885719515,6.6593,135.3,135.2,191.0012]
[1767885720514,0.32903681,135.3,135.2,6.6638]
[1767885720811,0.32903681,135.29,135.19,87.36]
[1767885721315,6.6608,135.27,135.19,94.0245]
[1767885721706,0.32903681,135.28,135.19,87.36]
[1767885721908,6.6612,135.26,135.19,87.36]
[1767885722216,0.32903681,135.28,135.18,6.665]
[1767885722403,6.6617,135.25,135.18,6.665]
[1767885722603,6.6617,135.25,135.17,87.36]
[1767885722817,6.6617,135.25,135.16,6.6657]
[1767885723011,6.96278195,135.27,135.16,87.36]
[1767885723211,103.5609,135.34,135.16,87.36]
[1767885723414,0.30178195,135.31,135.2,103.6604]
[1767885723610,0.30178195,135.31,135.19,111.11069831]
[1767885723611,6.6593,135.3,135.21,94.0233]
[1767885724517,0.30178195,135.29,135.19,6.6644]
[1767885725114,0.30178195,135.29,135.18,87.36]
[1767885725313,103.85590261,135.35,135.21,103.6554]
[1767885725521,0.30180261,135.34,135.21,103.6554]
[1767885725919,0.30180261,135.34,135.22,87.38]
[1767885726618,0.30180261,135.34,135.2,103.6593]
[1767885726619,103.86670261,135.33,135.2,103.6593]
[1767885726812,0.30180261,135.33,135.21,191.0343]
[1767885727210,0.30180261,135.33,135.24,6.6619]
[1767885727412,0.30180261,135.36,135.23,103.6406]
[1767885727616,0.30180261,135.36,135.25,103.6224]
[1767885727816,0.30180261,135.36,135.26,87.38]
[1767885728825,0.30180261,135.36,135.26,190.9941]
[1767885729025,87.68180261,135.39,135.26,190.9941]
[1767885729225,0.30180261,135.37,135.26,87.38]
[1767885730314,6.6574,135.34,135.26,87.38]
[1767885730525,6.6574,135.34,135.23,103.6384]
[1767885730526,0.30180261,135.35,135.24,87.38]
[1767885730730,0.30180261,135.35,135.24,191.0102]
[1767885730916,6.6573,135.34,135.25,6.6612]
[1767885731116,6.6573,135.34,135.24,87.38]
[1767885731624,6.6565,135.36,135.25,103.6229]
[1767885731824,0.30180261,135.36,135.24,87.38]
[1767885732023,6.6583,135.32,135.24,6.6618]
[1767885733030,6.6591,135.31,135.23,87.38]
[1767885733418,0.30180261,135.31,135.18,103.6757]
[1767885733619,0.30180261,135.28,135.18,87.38]
[1767885734027,0.30180261,135.27,135.18,87.38]
[1767885734227,6.6618,135.25,135.17,6.6652]
[1767885734430,0.30180261,135.25,135.15,87.38]
[1767885734723,0.30180261,135.25,135.15,191.0767]
[1767885735322,6.96350261,135.25,135.16,6.6657]
[1767885735523,6.96350261,135.25,135.15,87.38]
[1767885736524,0.30180261,135.25,135.15,87.38]
[1767885736731,0.30180261,135.23,135.15,87.38]
[1767885737129,0.30180261,135.27,135.14,103.7043]
[1767885737433,0.30180261,135.25,135.12,191.1026]
[1767885737629,0.30180261,135.21,135.12,6.6679]
[1767885737834,0.30180261,135.2,135.08,103.7557]
[1767885738028,0.30180261,135.18,135.07,87.38]
[1767885738225,0.30180261,135.18,135.05,103.7791]
[1767885738431,0.30180261,135.18,135.07,87.38]
[1767885739333,0.30180261,135.16,135.07,87.38]
[1767885740534,6.6667,135.15,135.07,87.38]
[1767885740932,6.96850261,135.15,135.06,6.6708]
[1767885741838,6.6673,135.14,135.04,87.4]
[1767885742237,6.96910261,135.14,135.04,87.4]
[1767885742530,6.96910261,135.14,135.01,103.8096]
[1767885742531,0.30180261,135.13,135.01,103.8096]
[1767885742935,0.30180261,135.13,135.01,191.2296]
[1767885743334,6.97030261,135.12,135.03,6.6722]
[1767885743832,0.30180261,135.12,135.01,87.42]
[1767885744236,104.03120261,135.12,135.01,87.42]
[1767885744431,104.03120261,135.12,134.96,103.8447]
[1767885744432,0.30180261,135.1,134.98,191.2511]
[1767885745026,0.30180261,135.1,135.0,103.8125]
[1767885745227,0.30180261,135.1,134.99,103.8228]
[1767885745228,0.30180261,135.16,135.04,103.786]
[1767885745427,0.30180261,135.16,135.05,103.7785]
[1767885745641,0.30180261,135.16,135.06,6.6707]
[1767885745642,6.96810261,135.16,135.06,6.6707]
[1767885746035,0.30180261,135.16,135.06,6.6707]
[1767885746936,0.30180261,135.16,135.07,6.6703]
[1767885747337,94.1057,135.17,135.08,6.6698]
[1767885747548,103.6512,135.22,135.09,103.7482]
[1767885747728,103.6489,135.22,135.09,103.7482]
[1767885748042,191.41070261,135.22,135.09,103.7482]
[1767885748438,103.97230261,135.2,135.09,87.46]
[1767885748645,0.30180261,135.17,135.06,87.46]
[1767885748943,0.30180261,135.17,135.06,103.7693]
[1767885749138,0.30180261,135.17,135.05,191.2372]
[1767885749549,0.30180261,135.15,135.05,94.1312]
[1767885750540,0.30180261,135.15,135.05,6.6712]
[1767885750541,6.6673,135.14,135.05,6.6712]
[1767885751447,6.96910261,135.14,135.05,6.6712]
[1767885752742,0.30180261,135.14,135.06,6.6708]
[1767885755248,104.04245108,135.15,135.04,6.6716]
[1767885755437,0.33405108,135.14,135.03,87.46]
[1767885755745,0.33405108,135.11,134.99,87.48]
[1767885756054,0.33405108,135.11,134.98,87.48]
[1767885756343,87.48,135.13,135.01,103.8086]
[1767885756537,191.52695108,135.14,135.01,103.8086]
[1767885756953,0.33405108,135.12,135.02,6.6726]
[1767885757448,0.33405108,135.12,135.01,87.48]
[1767885757449,6.67,135.08,135.01,87.48]
[1767885757745,104.07995108,135.1,134.98,87.48]
[1767885757950,0.33405108,135.09,134.98,87.48]
[1767885758145,0.33405108,135.09,134.97,103.8406]
[1767885758348,0.33405108,135.09,134.98,103.833]
[1767885758540,6.6694,135.1,135.01,6.6733]
[1767885758938,191.2091,135.12,135.01,6.6733]
[1767885759146,0.33405108,135.11,135.01,6.6733]
[1767885759951,0.33405108,135.09,134.99,87.48]
[1767885761243,7.00365108,135.09,135.01,6.6733]
[1767885761648,0.33405108,135.09,134.99,87.48]
[1767885761948,6.6711,135.06,134.97,6.675]
[1767885762146,0.33405108,135.09,134.97,103.8375]
[1767885763450,6.6706,135.07,135.0,6.6738]
[1767885763642,6.6706,135.07,134.96,191.3457]
[1767885764254,6.6713,135.06,134.97,6.6752]
[1767885764454,0.33405108,135.07,134.96,87.5]
[1767885764455,0.33405108,135.07,134.96,191.3452]
[1767885764954,0.33405108,135.07,135.0,6.6739]
[1767885765450,87.5,135.1,135.0,6.6739]
[1767885765451,87.83405108,135.1,135.0,6.6739]
[1767885765752,0.33405108,135.09,135.0,6.6739]
[1767885766157,6.6707,135.07,135.0,6.6739]
[1767885766544,0.33405108,135.09,135.0,6.6739]
[1767885766753,6.67,135.08,135.01,6.6733]
[1767885767158,0.33405108,135.09,135.01,6.6733]
[1767885767747,6.6701,135.08,135.01,6.6733]
[1767885769655,6.6695,135.1,135.0,103.8168]
[1767885769954,104.05815108,135.13,135.0,103.8168]
[1767885769955,0.33405108,135.13,135.01,191.3253]
[1767885770552,6.6686,135.11,135.04,6.6719]
[1767885770854,6.6686,135.11,135.01,87.52]
[1767885771750,0.33405108,135.11,134.99,103.8209]
[1767885771948,0.33405108,135.11,134.99,87.52]
[1767885772155,0.33405108,135.1,134.98,87.52]
[1767885773360,6.6701,135.08,135.01,6.6733]
[1767885773753,6.6701,135.08,135.02,6.6729]
[1767885773964,0.33405108,135.13,135.0,103.8172]
[1767885774167,104.06125108,135.12,134.99,111.26539831]
[1767885774460,104.06805108,135.11,135.01,6.6733]
[1767885775253,6.6702,135.08,135.01,6.6733]
[1767885775960,0.33405108,135.08,134.98,87.52]
[1767885776265,0.33405108,135.08,135.0,6.6739]
[1767885776266,7.00445108,135.08,135.0,6.6739]
[1767885776447,7.00445108,135.08,134.98,103.8327]
[1767885776650,7.00445108,135.08,134.98,191.3527]
[1767885776856,6.6704,135.08,134.98,195.953915]
[1767885777261,0.33405108,135.11,135.02,6.6728]
[1767885777862,6.6701,135.08,135.01,6.6732]
[1767885778462,0.33405108,135.09,134.99,87.52]
[1767885778857,0.33405108,135.08,134.95,4.601215]
[1767885779059,0.33405108,135.08,134.95,108.452915]
[1767885779265,0.33405108,135.08,134.97,103.8355]
[1767885779760,6.6705,135.07,134.98,87.52]
[1767885780554,6.6705,135.07,135.0,6.6739]
[1767885780957,6.671,135.06,134.98,87.52]
[1767885781157,6.671,135.06,134.99,6.6742]
[1767885781858,6.6716,135.05,134.98,87.52]
[1767885782067,0.33405108,135.07,134.98,87.52]
[1767885782359,0.32479963,135.06,134.93,103.8653]
[1767885782565,0.32479963,135.06,134.94,87.52]
[1767885782767,6.6732,135.02,134.95,6.6763]
[1767885782957,0.32479963,135.05,134.94,87.52]
[1767885783659,0.32479963,135.02,134.89,103.8982]
[1767885783857,0.32479963,135.02,134.9,103.8947]
[1767885784162,0.32479963,135.02,134.91,103.8854]
[1767885784364,6.99789963,135.02,134.94,6.6766]
[1767885784556,6.6731,135.02,134.92,103.8788]
[1767885785754,6.6731,135.02,134.95,6.6764]
[1767885786061,104.10243271,135.04,134.91,103.8854]
[1767885786267,0.31513271,135.03,134.94,6.6769]
[1767885786561,0.31513271,135.06,134.94,191.4008]
[1767885786864,0.31513271,135.06,134.98,6.6745]
[1767885787161,87.85513271,135.05,134.95,87.54]
[1767885787361,6.6731,135.02,134.95,87.54]
[1767885788065,6.6731,135.02,134.95,94.2163]
[1767885788657,6.6736,135.01,134.95,87.54]
[1767885788956,6.6736,135.01,134.91,191.4254]
[1767885789861,87.85513271,135.05,134.92,103.8758]
[1767885790059,0.31513271,135.05,134.94,103.8626]
[1767885790452,6.672,135.04,134.97,6.6752]
[1767885790864,0.31513271,135.05,134.95,103.8515]
[1767885791060,0.31513271,135.05,134.98,6.6745]
[1767885791254,0.31513271,135.05,134.95,87.54]
[1767885792970,87.56,135.07,134.95,195.992615]
[1767885793163,0.31513271,135.08,134.97,103.8399]
[1767885793369,0.31513271,135.11,134.99,103.8254]
[1767885793663,191.58943271,135.14,135.01,108.410715]
[1767885793867,104.02943271,135.14,135.02,87.56]
[1767885794052,6.6684,135.12,135.04,6.6719]
[1767885794659,191.58873271,135.14,135.02,94.2326]
[1767885794856,0.31513271,135.12,135.0,87.56]
[1767885795262,6.6697,135.09,135.0,87.56]
[1767885795466,0.31513271,135.1,135.0,87.56]
[1767885795663,0.31513271,135.14,135.01,103.8086]
[1767885795867,0.31513271,135.17,135.05,103.7731]
[1767885796064,104.00613271,135.17,135.05,87.56]
[1767885796261,104.00613271,135.17,135.03,103.7898]
[1767885796458,104.01583271,135.16,135.04,87.54]
[1767885796663,0.31513271,135.15,135.04,87.54]
[1767885797259,6.6674,135.14,135.04,94.2115]
[1767885797667,6.6683,135.12,135.04,87.54]
[1767885799563,104.01583271,135.16,135.04,87.54]
[1767885799771,103.668,135.2,135.1,6.669]
[1767885799772,0.31513271,135.2,135.1,6.669]
[1767885800066,87.83513271,135.23,135.1,103.74]
[1767885800273,0.31513271,135.23,135.1,103.74]
[1767885800670,6.6639,135.21,135.09,108.349315]
[1767885800974,0.31513271,135.21,135.08,103.7562]
[1767885801163,0.31513271,135.21,135.09,87.54]
[1767885801576,6.6648,135.19,135.1,6.6688]
[1767885801966,6.6648,135.19,135.09,87.54]
[1767885801967,0.31513271,135.18,135.05,4.601215]
[1767885802165,87.83513271,135.18,135.06,87.52]
[1767885802672,0.31513271,135.17,135.06,87.52]
[1767885802874,6.6663,135.16,135.06,94.1907]
[1767885803876,6.6668,135.15,135.06,87.52]
[1767885804083,103.6599,135.21,135.06,87.52]
[1767885804084,103.96403271,135.22,135.08,103.7529]
[1767885804376,0.31513271,135.22,135.11,103.7326]
[1767885804671,0.31513271,135.22,135.11,191.2526]
[1767885804873,0.31513271,135.22,135.1,103.7388]
[1767885805061,103.96753271,135.22,135.11,87.52]
[1767885805269,6.6648,135.19,135.11,87.52]
[1767885806463,6.6653,135.18,135.09,6.6694]
[1767885807470,6.6653,135.18,135.08,87.5]
[1767885807471,6.6658,135.17,135.08,87.5]
[1767885808177,6.6648,135.19,135.08,87.5]
[1767885808379,87.5,135.2,135.08,87.5]
[1767885808566,0.31513271,135.19,135.08,87.5]
[1767885808767,87.5,135.2,135.1,103.7366]
[1767885808983,87.5,135.2,135.1,191.2366]
[1767885809477,87.5,135.2,135.1,87.5]
[1767885810175,94.1642,135.2,135.1,94.1686]
[1767885810566,87.81513271,135.2,135.1,94.1686]
[1767885810965,0.31513271,135.19,135.1,87.5]
[1767885811166,0.31513271,135.19,135.08,6.6697]
[1767885812069,6.6658,135.17,135.09,6.6694]
[1767885812477,0.31513271,135.19,135.07,191.2386]
[1767885813282,6.6652,135.18,135.1,6.6689]
[1767885813977,6.6657,135.17,135.09,6.6694]
[1767885814176,0.31513271,135.19,135.07,191.2386]
[1767885814880,0.32483135,135.18,135.07,87.48]
[1767885815280,0.32483135,135.16,135.04,103.7866]
[1767885815486,0.32483135,135.16,135.04,191.2666]
[1767885815779,0.32483135,135.16,135.09,6.6693]
[1767885815986,0.32483135,135.15,135.01,103.8051]
[1767885816380,6.6676,135.13,135.05,6.6714]
[1767885816886,6.6681,135.12,135.05,6.6714]
[1767885817184,0.32483135,135.14,135.05,6.6714]
[1767885817980,0.32483135,135.17,135.06,103.7707]
[1767885818282,0.32483135,135.17,135.08,103.7534]
[1767885818482,87.80483135,135.2,135.08,103.7534]
[1767885818685,6.6648,135.19,135.11,6.6684]
[1767885819383,0.32483135,135.2,135.12,6.668]
[1767885819580,0.32483135,135.2,135.09,103.7452]
[1767885820085,6.6656,135.17,135.08,87.48]
[1767885820386,0.32483135,135.2,135.06,87.48]
[1767885820387,0.32483135,135.18,135.06,87.48]
[1767885820590,0.32483135,135.17,135.06,87.48]
[1767885820788,6.6662,135.16,135.08,6.6697]
[1767885821784,0.32483135,135.14,135.01,103.807]
[1767885822181,87.80483135,135.14,135.01,103.807]
[1767885822485,87.80483135,135.14,135.01,191.287]
[1767885822684,0.32483135,135.2,135.07,103.7632]
[1767885822889,0.32483135,135.23,135.1,103.7406]
[1767885823073,87.80483135,135.23,135.09,103.7483]
[1767885823278,0.32483135,135.23,135.09,103.7483]
[1767885823477,87.80483135,135.23,135.09,103.7483]
[1767885823784,0.32483135,135.22,135.1,87.48]
[1767885823987,6.6638,135.21,135.11,6.6683]
[1767885824288,6.98863135,135.21,135.11,6.6683]
[1767885824884,0.32483135,135.21,135.12,6.6678]
[1767885828089,6.98873135,135.21,135.1,94.1487]
[1767885828388,0.32483135,135.21,135.1,94.1487]
[1767885828697,6.98963135,135.19,135.07,191.2432]
[1767885828876,0.32483135,135.19,135.09,6.6693]
[1767885829182,0.32483135,135.17,135.09,6.6693]
[1767885829382,0.32483135,135.17,135.07,87.48]
[1767885830285,0.32483135,135.17,135.07,94.1504]
[1767885830490,0.32483135,135.17,135.07,6.6704]
[1767885830887,0.32483135,135.16,135.05,94.1313]
[1767885831285,87.78483135,135.16,135.05,94.1313]
[1767885831582,6.667,135.15,135.06,6.6708]
[1767885832383,103.6824,135.18,135.06,6.6708]
[1767885832591,103.98513135,135.21,135.07,103.7635]
[1767885832784,103.98513135,135.21,135.08,103.7556]
[1767885833295,103.98513135,135.21,135.08,191.2356]
[1767885833485,6.6644,135.2,135.11,6.6683]
[1767885833693,0.32483135,135.24,135.12,103.7217]
[1767885833889,0.32483135,135.24,135.13,87.48]
[1767885834284,0.32483135,135.23,135.14,6.6666]
[1767885834489,0.32483135,135.23,135.12,191.202]
[1767885835407,6.98753135,135.23,135.15,6.6664]
[1767885835594,0.32483135,135.23,135.13,103.7153]
[1767885835987,6.662,135.25,135.14,103.7066]
[1767885836202,6.662,135.25,135.15,103.7009]
[1767885836590,6.662,135.25,135.17,6.6654]
[1767885836899,0.32483135,135.27,135.17,103.6852]
[1767885837102,0.32483135,135.33,135.19,103.6678]
[1767885837403,6.98433135,135.3,135.2,87.46]
[1767885837704,6.98433135,135.3,135.19,191.1309]
[1767885837890,0.32483135,135.3,135.2,6.6638]
[1767885838296,0.32483135,135.3,135.19,87.46]
[1767885838599,6.66,135.29,135.19,87.46]
[1767885839400,0.32483135,135.28,135.19,87.46]
[1767885839697,0.32483135,135.28,135.19,94.1243]
[1767885840697,6.98523135,135.28,135.19,94.1243]
[1767885840898,0.32483135,135.27,135.17,6.6653]
[1767885841202,0.32483135,135.27,135.17,94.1253]
[1767885841400,0.32483135,135.27,135.18,6.6646]
[1767885841697,94.0998,135.29,135.17,191.1441]
[1767885841698,0.32483135,135.29,135.17,191.1441]
[1767885841901,6.6609,135.27,135.17,94.1254]
[1767885842899,6.98473135,135.29,135.17,191.1433]
[1767885843100,103.88675965,135.34,135.2,103.658]
[1767885843403,0.32615965,135.31,135.21,87.44]
[1767885844604,87.74615965,135.31,135.21,87.44]
[1767885844898,103.88675965,135.34,135.21,87.44]
[1767885845204,87.74615965,135.33,135.21,87.44]
[1767885845410,103.91286386,135.31,135.21,87.44]
[1767885846597,6.6602,135.28,135.21,87.44]
[1767885847000,0.32786386,135.29,135.18,94.085]
[1767885847196,6.6608,135.27,135.18,6.665]
[1767885848393,6.6614,135.26,135.17,87.42]
[1767885848589,103.93396386,135.28,135.16,6.6658]
[1767885848590,0.32786386,135.27,135.16,6.6658]
[1767885849212,6.6618,135.25,135.17,6.6654]
[1767885849521,0.32786386,135.27,135.16,103.6945]
[1767885849700,6.66,135.29,135.2,6.664]
[1767885850209,6.66,135.29,135.17,103.6845]
[1767885850210,0.32786386,135.3,135.19,103.6687]
[1767885850405,6.659,135.31,135.2,191.0841]
[1767885850601,6.659,135.31,135.21,103.6554]
[1767885850907,6.659,135.31,135.2,191.0841]
[1767885851293,6.659,135.31,135.2,103.6641]
[1767885851498,6.98586386,135.33,135.22,103.6487]
[1767885851700,6.658,135.33,135.22,103.6487]
[1767885852095,6.658,135.33,135.23,87.42]
[1767885852502,0.32786386,135.39,135.28,103.6003]
[1767885852712,0.32786386,135.39,135.28,87.42]
[1767885853013,6.6555,135.38,135.28,87.42]
[1767885853407,6.6564,135.36,135.27,6.6604]
[1767885853707,0.32786386,135.37,135.27,6.6604]
[1767885854307,6.98376386,135.37,135.28,6.6599]
[1767885854497,0.32786386,135.37,135.28,6.6599]
[1767885854999,6.98376386,135.37,135.28,6.6599]
[1767885855598,0.32786386,135.44,135.3,103.5832]
[1767885855799,0.32786386,135.44,135.33,103.5634]
[1767885856007,0.32786386,135.46,135.33,103.5634]
[1767885856208,6.97926386,135.46,135.34,103.5536]
[1767885856406,0.32786386,135.46,135.35,103.5481]
[1767885856597,103.4033,135.55,135.34,103.5536]
[1767885856598,0.32786386,135.52,135.39,103.5177]
[1767885856801,110.39686386,135.52,135.4,6.6539]
[1767885857006,110.069,135.52,135.4,6.6539]
[1767885857203,0.32786386,135.5,135.37,103.5312]
[1767885857408,0.32786386,135.5,135.38,110.1806]
[1767885857608,0.32786386,135.5,135.38,197.5806]
[1767885858014,0.32786386,135.5,135.38,94.0548]
[1767885858413,87.70786386,135.5,135.38,94.0548]
[1767885858615,6.97776386,135.49,135.38,94.0548]
[1767885858914,0.32786386,135.48,135.38,87.4]
[1767885860708,0.32786386,135.47,135.38,87.4]
[1767885861011,190.8177,135.5,135.38,87.4]
[1767885861211,0.32786386,135.49,135.38,87.4]
[1767885861408,0.32786386,135.48,135.38,87.4]
[1767885861610,0.32786386,135.47,135.35,94.0166]
[1767885861811,0.32786386,135.47,135.37,103.5339]
[1767885862110,6.97776386,135.49,135.37,103.5339]
[1767885862319,94.31776386,135.49,135.37,103.5339]
[1767885862518,94.31776386,135.49,135.38,6.6548]
[1767885862724,6.97846386,135.48,135.36,87.34]
[1767885863016,0.32786386,135.47,135.34,190.8936]
[1767885863213,87.66786386,135.47,135.34,190.8936]
[1767885863623,94.31896386,135.47,135.36,6.6561]
[1767885863816,6.97896386,135.47,135.36,6.6561]
[1767885864620,6.97936386,135.46,135.36,6.6561]
[1767885864819,0.32786386,135.46,135.34,87.34]
[1767885865715,0.32786386,135.46,135.35,6.6565]
[1767885866016,0.32786386,135.42,135.29,103.5908]
[1767885866226,191.14846386,135.42,135.27,190.9463]
[1767885866514,191.14846386,135.42,135.26,111.07411739]
[1767885866515,0.32786386,135.41,135.31,103.5796]
[1767885867310,0.32786386,135.41,135.3,190.9052]
[1767885867719,0.32786386,135.41,135.3,87.32]
[1767885867919,0.32786386,135.41,135.3,190.9027]
[1767885868721,0.32786386,135.41,135.3,87.32]
[1767885869224,87.64786386,135.4,135.3,87.32]
[1767885869624,6.6549,135.39,135.3,93.979]
[1767885869821,0.32786386,135.38,135.24,103.6321]
[1767885870026,0.32786386,135.38,135.25,190.9454]
[1767885870221,6.6559,135.37,135.28,6.66]
[1767885870622,87.64786386,135.38,135.28,6.66]
[1767885871132,6.6563,135.36,135.26,6.6609]
[1767885871325,0.32786386,135.36,135.22,103.6475]
[1767885871523,0.32786386,135.36,135.23,87.32]
[1767885871714,87.64786386,135.36,135.23,87.32]
[1767885871921,6.6574,135.34,135.23,190.9578]
[1767885872425,6.6578,135.33,135.24,6.6618]
[1767885872630,0.32407623,135.34,135.24,6.6618]
[1767885872925,6.98157623,135.34,135.26,6.661]
[1767885873134,94.30157623,135.34,135.26,6.661]
[1767885873730,94.30157623,135.34,135.24,6.6618]
[1767885873941,94.30157623,135.34,135.23,103.6374]
[1767885874134,87.32,135.35,135.24,103.6334]
[1767885874521,6.98067623,135.36,135.26,6.661]
[1767885875025,0.32407623,135.36,135.26,103.6173]
[1767885875532,0.32407623,135.36,135.28,6.66]
[1767885875920,6.98037623,135.36,135.28,6.66]
[1767885876229,0.32407623,135.36,135.26,6.6608]
[1767885876737,6.6568,135.35,135.26,6.6608]
[1767885876924,6.6568,135.35,135.27,6.6605]
[1767885877232,0.32407623,135.36,135.24,87.34]
[1767885877435,6.6578,135.33,135.24,87.34]
[1767885878035,6.98187623,135.33,135.25,6.6614]
[1767885879139,6.657,135.35,135.25,103.6243]
[1767885879434,0.32407623,135.36,135.24,87.34]
[1767885880734,6.6573,135.34,135.26,6.6608]
[1767885880942,0.32407623,135.35,135.24,87.34]
[1767885881143,6.6578,135.33,135.24,94.0017]
[1767885881336,0.32407623,135.34,135.24,6.6617]
[1767885881640,0.32407623,135.36,135.23,103.6396]
[1767885882029,6.6568,135.35,135.27,6.6606]
[1767885882436,0.32407623,135.38,135.25,103.6212]
[1767885882640,6.656,135.37,135.29,6.6595]
[1767885883239,0.32407623,135.36,135.21,103.6538]
[1767885883433,0.32407623,135.35,135.22,103.6472]
[1767885883842,0.32407623,135.35,135.22,191.0072]
[1767885884038,87.66407623,135.34,135.22,191.0072]
[1767885884537,6.6579,135.33,135.25,6.6615]
[1767885884738,0.32407623,135.33,135.22,87.36]
[1767885885137,6.6592,135.3,135.23,6.6622]
[1767885885834,6.6597,135.29,135.19,103.6692]
[1767885886035,6.6597,135.29,135.19,191.0292]
[1767885886235,87.66407623,135.32,135.19,191.0292]
[1767885886530,0.32407623,135.31,135.23,6.6625]
[1767885887440,6.98327623,135.3,135.2,103.6622]
[1767885887833,6.98327623,135.3,135.23,6.6624]
[1767885888343,87.68407623,135.32,135.21,103.6552]
[1767885888742,0.32407623,135.32,135.21,103.6552]
[1767885888948,0.32407623,135.32,135.22,103.648]
[1767885889334,6.98267623,135.32,135.25,6.6614]
[1767885889834,6.6574,135.34,135.27,6.6602]
[1767885890434,0.32407623,135.36,135.26,6.6608]
[1767885890435,6.6577,135.33,135.26,6.6608]
[1767885892452,6.6582,135.32,135.22,191.008]
[1767885892948,6.6589,135.31,135.23,6.6623]
[1767885893251,6.6589,135.31,135.22,87.36]
[1767885893636,6.98297623,135.31,135.22,87.36]
[1767885893836,6.6592,135.3,135.22,87.36]
[1767885894039,87.36,135.33,135.23,103.6396]
[1767885894852,87.36,135.33,135.28,6.6599]
[1767885895039,6.98077623,135.35,135.28,6.6599]
[1767885895240,87.36,135.34,135.28,6.6599]
[1767885895546,6.98077623,135.35,135.28,6.6599]
[1767885895746,87.36,135.34,135.28,6.6599]
[1767885895946,6.98077623,135.35,135.28,6.6599]
[1767885896245,87.36,135.34,135.28,6.6599]
[1767885897650,0.32407623,135.38,135.27,103.6092]
[1767885897954,87.68407623,135.37,135.27,103.6092]
[1767885898253,87.36,135.36,135.27,103.6092]
[1767885898752,87.36,135.36,135.3,6.6591]
[1767885899749,87.36,135.35,135.3,6.6591]
[1767885900557,0.32407623,135.37,135.28,103.5973]
[1767885900750,0.32407623,135.43,135.31,103.5785]
[1767885900956,87.68407623,135.43,135.32,4.58228595]
[1767885901450,103.4708,135.46,135.35,108.13128595]
[1767885901451,0.32407623,135.46,135.35,108.13128595]
[1767885901650,87.68407623,135.46,135.35,108.13128595]
[1767885902054,6.97607623,135.45,135.35,4.58228595]
[1767885902255,0.32407623,135.45,135.33,195.50378595]
[1767885902460,0.32407623,135.45,135.34,103.5557]
[1767885902656,0.32407623,135.45,135.37,6.6556]
[1767885902959,94.0116,135.46,135.34,103.5557]
[1767885902960,0.32451288,135.49,135.36,108.11918595]
[1767885903160,0.32451288,135.49,135.4,6.654]
[1767885903351,87.66451288,135.49,135.4,6.654]
[1767885904056,0.32451288,135.49,135.4,6.654]
[1767885904354,87.66451288,135.49,135.41,6.6533]
[1767885904550,0.32451288,135.52,135.41,103.5006]
[1767885904746,0.32451288,135.52,135.44,6.6521]
[1767885904945,0.31340989,135.55,135.43,103.488]
[1767885905162,87.34,135.54,135.44,103.4804]
[1767885905354,87.65340989,135.54,135.44,6.652]
[1767885905552,87.65340989,135.54,135.44,103.4792]
[1767885906060,103.3776,135.58,135.43,103.488]
[1767885906061,0.31340989,135.58,135.46,103.4645]
[1767885906359,0.31340989,135.57,135.47,103.4554]
[1767885906559,0.31340989,135.57,135.49,6.6495]
[1767885907557,0.31340989,135.6,135.5,6.6489]
[1767885907766,87.32,135.59,135.5,6.6489]
[1767885907961,87.63340989,135.6,135.5,103.4344]
[1767885908165,0.31340989,135.63,135.53,103.4115]
[1767885908460,87.61340989,135.63,135.52,103.4147]
[1767885908963,0.31340989,135.63,135.54,6.647]
[1767885909266,0.31340989,135.63,135.51,4.58228595]
[1767885909267,0.31340989,135.61,135.48,190.7476]